[Event "Danish Skakligaen 2024-25"]
[Site "Denmark"]
[Date "2024.11.03"]
[Round "2.6"]
[White "Liu, Casper"]
[Black "Sobjerg, Erik"]
[Result "0-1"]
[ECO "E65"]
[WhiteElo "2225"]
[BlackElo "2266"]
[Annotator "RC"]
[PlyCount "52"]
[EventDate "2024.11.02"]
[EventType "team-tourn"]
[EventCountry "DEN"]
[SourceTitle "playchess.com"]
[Source "ChessBase"]
[SourceQuality "1"]
[TimeControl "40/5400+30:1800+30"]

1. c4 {[%emt 0:00:11]} Nf6 {[%emt 0:02:21]} 2. Nf3 {[%emt 0:00:47]} g6 {[%emt 0:00:24]} 3. g3 {[%emt 0:00:50]} Bg7 {[%emt 0:00:30]} 4. Bg2 {[%emt 0:00:04]} d6 {[%emt 0:02:13]} 5. d4 {[%emt 0:00:11]} O-O {[%emt 0:01:31]} 6. O-O {[%emt 0:00:23]} c5 {[%emt 0:00:35]} 7. Nc3 {[%emt 0:01:06]} Nc6 {[%emt 0:04:46]} 8. h3 {[%emt 0:00:12]} cxd4 {[%emt 0:04:33]} 9. Nxd4 {[%emt 0:00:05]} Bd7 {[%emt 0:06:59]} 10. Be3 {[%emt 0:01:06]} Qa5 {[%emt 0:04:48]} 11. Nb3 {[%emt 0:11:02]} Qh5 {[%emt 0:04:09]} 12. g4 {[%emt 0:02:29]} Bxg4 {[%emt 0:04:00]} 13. hxg4 {[%emt 0:00:03]} Nxg4 {[%emt 0:00:05]} 14. Bf4 {[%emt 0:00:08]} Be5 {[%emt 0:05:44]} 15. Qc1 {[%emt 0:00:08]} g5 {[%emt 0:03:49]} 16. Bxe5 {[%emt 0:00:06]} Ncxe5 {[%emt 0:00:30]} 17. Rd1 {[%emt 0:00:05]} f5 {[%emt 0:05:05]} 18. Rd4 {[%emt 0:15:51]} f4 {[%emt 0:07:30]} 19. Nd1 {[%emt 0:23:59]} f3 {[%emt 0:02:18]} 20. exf3 {[%emt 0:05:41]} Nxf3+ {[%emt 0:01:25]} 21. Bxf3 {[%emt 0:00:07]} Rxf3 {[%emt 0:00:03]} 22. Kf1 {[%emt 0:04:42]} Raf8 {[%emt 0:07:26]} 23. Rxg4 {[%emt 0:00:06]} Qxg4 {[%emt 0:00:45]} 24. c5 {[%emt 0:00:07]} Rh3 {[%emt 0:04:49]} 25. Ke1 {[%emt 0:02:45]} Qe4+ {[%emt 0:03:09]} 26. Ne3 {[%emt 0:02:35]} Rh1+ {[%emt 0:01:59]} 0-1

[Event "Danish Skakligaen 2024-25"]
[Site "Denmark"]
[Date "2024.11.03"]
[Round "2.6"]
[White "Jakobsen, Peter"]
[Black "Rewitz, Jan"]
[Result "1-0"]
[ECO "E97"]
[WhiteElo "2215"]
[BlackElo "2071"]
[Annotator "RC"]
[PlyCount "49"]
[EventDate "2024.11.02"]
[EventType "team-tourn"]
[EventCountry "DEN"]
[SourceTitle "playchess.com"]
[Source "ChessBase"]
[SourceQuality "1"]
[TimeControl "40/5400+30:1800+30"]

1. d4 {[%emt 0:00:03]} Nf6 {[%emt 0:00:14]} 2. c4 {[%emt 0:00:05]} g6 {[%emt 0:00:09]} 3. Nc3 {[%emt 0:00:05]} Bg7 {[%emt 0:00:08]} 4. e4 {[%emt 0:00:06]} d6 {[%emt 0:00:06]} 5. Nf3 {[%emt 0:00:06]} O-O {[%emt 0:00:10]} 6. Be2 {[%emt 0:00:05]} e5 {[%emt 0:00:09]} 7. O-O {[%emt 0:00:05]} Nc6 {[%emt 0:00:07]} 8. d5 {[%emt 0:00:05]} Ne7 {[%emt 0:00:06]} 9. b4 {[%emt 0:00:10]} Ne8 {[%emt 0:03:20]} 10. c5 {[%emt 0:00:25]} h6 {[%emt 0:02:23]} 11. a4 {[%emt 0:01:52]} f5 {[%emt 0:03:12]} 12. Nd2 {[%emt 0:01:07]} fxe4 {[%emt 0:09:12]} 13. Ndxe4 {[%emt 0:00:37]} Nf5 {[%emt 0:01:04]} 14. Ba3 {[%emt 0:02:51]} Rf7 {[%emt 0:14:43]} 15. b5 {[%emt 0:12:17]} Nd4 {[%emt 0:06:19]} 16. Bd3 {[%emt 0:07:31]} Bf8 {[%emt 0:04:03]} 17. a5 {[%emt 0:04:48]} b6 {[%emt 0:15:13]} 18. axb6 {[%emt 0:01:04]} axb6 {[%emt 0:02:43]} 19. cxb6 {[%emt 0:00:46]} cxb6 {[%emt 0:00:35]} 20. Bb4 {[%emt 0:04:34]} Rb8 {[%emt 0:12:34]} 21. Ra3 {[%emt 0:13:45]} Qh4 {[%emt 0:02:44]} 22. f3 {[%emt 0:16:27]} Rf5 {[%emt 0:08:02]} 23. Qe1 {[%emt 0:03:00]} Qe7 {[%emt 0:06:53]} 24. Ne2 {[%emt 0:01:56]} Rxf3 {[%emt 0:01:11]} 25. gxf3 {[%emt 0:00:28]} 1-0

[Event "Danish Skakligaen 2024-25"]
[Site "Denmark"]
[Date "2024.11.03"]
[Round "2.6"]
[White "Simonsen, Carsten"]
[Black "Stentebjerg-Hansen, Per"]
[Result "1-0"]
[ECO "B07"]
[WhiteElo "2168"]
[BlackElo "2191"]
[Annotator "RC"]
[PlyCount "47"]
[EventDate "2024.11.02"]
[EventType "team-tourn"]
[EventCountry "DEN"]
[SourceTitle "playchess.com"]
[Source "ChessBase"]
[SourceQuality "1"]
[TimeControl "40/5400+30:1800+30"]

1. d4 {[%emt 0:00:03]} d6 {[%emt 0:00:11]} 2. e4 {[%emt 0:00:32]} Nf6 {[%emt 0:00:11]} 3. Nc3 {[%emt 0:00:14]} Nbd7 {[%emt 0:00:16]} 4. Nf3 {[%emt 0:00:24]} e5 {[%emt 0:00:12]} 5. Rg1 {[%emt 0:03:07]} Be7 {[%emt 0:05:45]} 6. g4 {[%emt 0:00:34]} h6 {[%emt 0:02:09]} 7. Be3 {[%emt 0:10:06]} c6 {[%emt 0:04:37]} 8. Qd2 {[%emt 0:08:20]} b5 {[%emt 0:07:11]} 9. a3 {[%emt 0:06:35]} Qc7 {[%emt 0:04:38]} 10. Be2 {[%emt 0:06:32]} Bb7 {[%emt 0:01:56]} 11. g5 {[%emt 0:01:08]} hxg5 {[%emt 0:00:12]} 12. Nxg5 {[%emt 0:00:58]} a6 {[%emt 0:11:35]} 13. h3 {[%emt 0:01:22]} Rc8 {[%emt 0:09:28]} 14. b3 {[%emt 0:03:22]} Nf8 {[%emt 0:06:25]} 15. f4 {[%emt 0:03:44]} Ng6 {[%emt 0:02:02]} 16. f5 {[%emt 0:00:47]} Nf8 {[%emt 0:01:32]} 17. Bf3 {[%emt 0:05:18]} N8d7 {[%emt 0:03:54]} 18. Qg2 {[%emt 0:00:45]} Bf8 {[%emt 0:02:23]} 19. O-O-O {[%emt 0:05:43]} exd4 {[%emt 0:01:15]} 20. Bxd4 {[%emt 0:00:28]} Ne5 {[%emt 0:02:25]} 21. Kb2 {[%emt 0:01:53]} Nh7 {[%emt 0:03:31]} 22. Ne6 {[%emt 0:06:38]} fxe6 {[%emt 0:02:10]} 23. Bh5+ {[%emt 0:00:34]} g6 {[%emt 0:04:53]} 24. Bxe5 {[%emt 0:06:50]} 1-0

[Event "Danish Skakligaen 2024-25"]
[Site "Denmark"]
[Date "2024.11.03"]
[Round "2.7"]
[White "Pedersen, Finn"]
[Black "Haubro, Sigfred"]
[Result "0-1"]
[ECO "A06"]
[WhiteElo "2273"]
[BlackElo "2124"]
[Annotator "RC"]
[PlyCount "132"]
[EventDate "2024.11.02"]
[EventType "team-tourn"]
[EventCountry "DEN"]
[SourceTitle "playchess.com"]
[Source "ChessBase"]
[SourceQuality "1"]
[TimeControl "40/5400+30:1800+30"]

1. Nf3 {[%emt 0:00:54]} d5 {[%emt 0:01:27]} 2. d4 {[%emt 0:00:15]} e6 {[%emt 0:00:07]} 3. Bf4 {[%emt 0:00:39]} Be7 {[%emt 0:00:08]} 4. h3 {[%emt 0:00:54]} Nf6 {[%emt 0:01:21]} 5. e3 {[%emt 0:00:21]} c5 {[%emt 0:02:01]} 6. c3 {[%emt 0:00:25]} Nbd7 {[%emt 0:01:20]} 7. Nbd2 {[%emt 0:00:33]} a6 {[%emt 0:01:43]} 8. a4 {[%emt 0:01:37]} b6 {[%emt 0:07:16]} 9. Bd3 {[%emt 0:03:21]} Bb7 {[%emt 0:00:40]} 10. Qb1 {[%emt 0:00:41]} Rc8 {[%emt 0:13:27]} 11. O-O {[%emt 0:01:27]} h6 {[%emt 0:01:25]} 12. Ne5 {[%emt 0:04:07]} c4 {[%emt 0:10:21]} 13. Be2 {[%emt 0:10:26]} b5 {[%emt 0:04:31]} 14. axb5 {[%emt 0:01:04]} axb5 {[%emt 0:00:07]} 15. b4 {[%emt 0:00:49]} O-O {[%emt 0:04:28]} 16. Bf3 {[%emt 0:03:03]} Nxe5 {[%emt 0:03:09]} 17. Bxe5 {[%emt 0:01:29]} Nd7 {[%emt 0:01:10]} 18. Bg3 {[%emt 0:02:50]} Bf6 {[%emt 0:05:48]} 19. Bd6 {[%emt 0:03:59]} Re8 {[%emt 0:00:17]} 20. Bg4 {[%emt 0:01:06]} Rc6 {[%emt 0:06:30]} 21. Bc5 {[%emt 0:06:53]} e5 {[%emt 0:03:15]} 22. Nf3 {[%emt 0:04:33]} e4 {[%emt 0:01:16]} 23. Ne1 {[%emt 0:01:53]} Nb6 {[%emt 0:04:30]} 24. Ra5 {[%emt 0:09:57]} Na4 {[%emt 0:03:01]} 25. Qa1 {[%emt 0:00:20]} Rxc5 {[%emt 0:07:12]} 26. Rxa4 {[%emt 0:02:27]} Rc7 {[%emt 0:00:09]} 27. Ra5 {[%emt 0:00:53]} Bc6 {[%emt 0:00:10]} 28. Nc2 {[%emt 0:00:31]} g6 {[%emt 0:00:31]} 29. Ra6 {[%emt 0:02:45]} h5 {[%emt 0:01:40]} 30. Be2 {[%emt 0:00:23]} Bg5 {[%emt 0:01:45]} 31. Qa5 {[%emt 0:02:19]} Qd7 {[%emt 0:01:05]} 32. Ra1 {[%emt 0:00:36]} Bd8 {[%emt 0:01:11]} 33. Qa2 {[%emt 0:03:08]} Rc8 {[%emt 0:03:25]} 34. Qb1 {[%emt 0:07:11]} Bb7 {[%emt 0:01:49]} 35. Ra7 {[%emt 0:01:05]} Bb6 {[%emt 0:00:16]} 36. R7a2 {[%emt 0:00:09]} Qd6 {[%emt 0:00:16]} 37. h4 {[%emt 0:02:55]} Qf6 {[%emt 0:01:28]} 38. g3 {[%emt 0:00:41]} Kh7 {[%emt 0:04:56]} 39. Qd1 {[%emt 0:05:49]} Rb8 {[%emt 0:00:59]} 40. Ne1 {[%emt 0:02:57]} Bc7 {[%emt 0:01:55]} 41. Ng2 {[%emt 0:30:32]} Qe7 {[%emt 0:31:39]} 42. Kf1 {[%emt 0:02:54]} Qf6 {[%emt 0:00:00]} 43. Ke1 {[%emt 0:00:00]} Rf8 {[%emt 0:00:00]} 44. Qd2 {[%emt 0:00:00]} Rfe8 {[%emt 0:00:00]} 45. Bf1 {[%emt 0:00:00]} Re7 {[%emt 0:00:00]} 46. Kd1 {[%emt 0:00:00]} Bxg3 {[%emt 0:00:00]} 47. fxg3 {[%emt 0:00:00]} Qxf1+ {[%emt 0:00:00]} 48. Ne1 {[%emt 0:00:00]} Bc8 {[%emt 0:00:00]} 49. Qg2 {[%emt 0:00:00]} Bg4+ {[%emt 0:00:00]} 50. Kd2 {[%emt 0:00:00]} Qf5 {[%emt 0:00:00]} 51. Kc1 {[%emt 0:00:00]} Bf3 {[%emt 0:00:00]} 52. Qf1 {[%emt 0:00:00]} Qg4 {[%emt 0:00:00]} 53. Qf2 {[%emt 0:00:00]} Kg7 {[%emt 0:00:00]} 54. Ra6 {[%emt 0:00:00]} Rbb7 {[%emt 0:00:00]} 55. Ra8 {[%emt 0:00:00]} Red7 {[%emt 0:00:00]} 56. Kd2 {[%emt 0:00:00]} Rd6 {[%emt 0:00:00]} 57. Re8 {[%emt 0:00:00]} Rf6 {[%emt 0:00:00]} 58. Raa8 {[%emt 0:00:00]} Rf5 {[%emt 0:00:00]} 59. Rg8+ {[%emt 0:00:00]} Kf6 {[%emt 0:00:00]} 60. Rgb8 {[%emt 0:00:00]} Rxb8 {[%emt 0:00:00]} 61. Rxb8 {[%emt 0:00:00]} Bd1 {[%emt 0:00:00]} 62. Qg2 {[%emt 0:00:00]} Ba4 {[%emt 0:00:00]} 63. Nc2 {[%emt 0:00:28]} Rf3 {[%emt 0:00:00]} 64. Na3 {[%emt 0:00:23]} Rxg3 {[%emt 0:00:23]} 65. Qf1+ {[%emt 0:01:26]} Rf3 {[%emt 0:00:14]} 66. Qe1 {[%emt 0:00:34]} Qg2+ {[%emt 0:00:09]} 0-1

[Event "Danish Skakligaen 2024-25"]
[Site "Denmark"]
[Date "2024.11.03"]
[Round "2.7"]
[White "Nord, Alexander"]
[Black "Borge, Nikolaj"]
[Result "0-1"]
[ECO "D02"]
[WhiteElo "2222"]
[BlackElo "2353"]
[Annotator "RC"]
[PlyCount "68"]
[EventDate "2024.11.02"]
[EventType "team-tourn"]
[EventCountry "DEN"]
[SourceTitle "playchess.com"]
[Source "ChessBase"]
[SourceQuality "1"]
[TimeControl "40/5400+30:1800+30"]

1. d4 {[%emt 0:00:05]} d5 {[%emt 0:00:10]} 2. Nf3 {[%emt 0:00:29]} Nf6 {[%emt 0:01:50]} 3. Bf4 {[%emt 0:00:37]} c5 {[%emt 0:00:35]} 4. e3 {[%emt 0:00:21]} Nc6 {[%emt 0:00:10]} 5. Nbd2 {[%emt 0:00:23]} Nh5 {[%emt 0:04:04]} 6. dxc5 {[%emt 0:01:25]} Nxf4 {[%emt 0:16:54]} 7. exf4 {[%emt 0:01:47]} Qa5 {[%emt 0:02:19]} 8. c3 {[%emt 0:18:13]} Qxc5 {[%emt 0:00:46]} 9. Bd3 {[%emt 0:01:39]} g6 {[%emt 0:12:37]} 10. O-O {[%emt 0:08:49]} Bg7 {[%emt 0:06:09]} 11. a3 {[%emt 0:02:57]} O-O {[%emt 0:01:08]} 12. Re1 {[%emt 0:00:42]} Qd6 {[%emt 0:03:39]} 13. g3 {[%emt 0:00:54]} Bg4 {[%emt 0:00:47]} 14. Qc2 {[%emt 0:06:06]} Rac8 {[%emt 0:02:55]} 15. Kg2 {[%emt 0:03:14]} Qd7 {[%emt 0:05:21]} 16. Qb3 {[%emt 0:14:32]} a6 {[%emt 0:08:12]} 17. Qb6 {[%emt 0:04:26]} f6 {[%emt 0:01:34]} 18. c4 {[%emt 0:01:38]} d4 {[%emt 0:02:25]} 19. Ne4 {[%emt 0:06:16]} e5 {[%emt 0:04:18]} 20. Nc5 {[%emt 0:09:37]} Bxf3+ {[%emt 0:03:24]} 21. Kxf3 {[%emt 0:00:02]} Qh3 {[%emt 0:00:33]} 22. Be4 {[%emt 0:07:05]} exf4 {[%emt 0:04:19]} 23. Bd5+ {[%emt 0:02:51]} Kh8 {[%emt 0:00:06]} 24. Be6 {[%emt 0:00:15]} f5 {[%emt 0:03:37]} 25. Bd5 {[%emt 0:02:25]} d3 {[%emt 0:02:58]} 26. Ne6 {[%emt 0:01:16]} g5 {[%emt 0:01:37]} 27. Nxg5 {[%emt 0:04:24]} Qg4+ {[%emt 0:02:41]} 28. Kg2 {[%emt 0:00:05]} Qxg5 {[%emt 0:00:05]} 29. Qxb7 {[%emt 0:00:45]} Ne5 {[%emt 0:01:11]} 30. Rad1 {[%emt 0:01:31]} fxg3 {[%emt 0:01:06]} 31. hxg3 {[%emt 0:00:06]} f4 {[%emt 0:00:12]} 32. Rxe5 {[%emt 0:01:04]} Bxe5 {[%emt 0:00:37]} 33. Rxd3 {[%emt 0:00:29]} fxg3 {[%emt 0:00:18]} 34. fxg3 {[%emt 0:00:13]} Rb8 {[%emt 0:00:10]} 0-1

[Event "Danish Skakligaen 2024-25"]
[Site "Denmark"]
[Date "2024.11.03"]
[Round "2.7"]
[White "Petersen, Steen"]
[Black "Brondt, Nicolai Kvist"]
[Result "0-1"]
[ECO "B23"]
[WhiteElo "2128"]
[BlackElo "2223"]
[Annotator "RC"]
[PlyCount "88"]
[EventDate "2024.11.02"]
[EventType "team-tourn"]
[EventCountry "DEN"]
[SourceTitle "playchess.com"]
[Source "ChessBase"]
[SourceQuality "1"]
[TimeControl "40/5400+30:1800+30"]

1. e4 {[%emt 0:00:04]} c5 {[%emt 0:02:05]} 2. Nc3 {[%emt 0:00:16]} e6 {[%emt 0:00:43]} 3. g3 {[%emt 0:01:14]} Nc6 {[%emt 0:00:09]} 4. Bg2 {[%emt 0:00:15]} g6 {[%emt 0:00:28]} 5. d3 {[%emt 0:00:31]} Bg7 {[%emt 0:00:10]} 6. Be3 {[%emt 0:01:18]} d6 {[%emt 0:00:34]} 7. Qd2 {[%emt 0:01:44]} Rb8 {[%emt 0:02:58]} 8. Nge2 {[%emt 0:09:38]} Nd4 {[%emt 0:02:02]} 9. O-O {[%emt 0:06:01]} b5 {[%emt 0:00:35]} 10. a3 a5 11. Nc1 {[%emt 0:28:02]} Ne7 {[%emt 0:12:53]} 12. Nd1 {[%emt 0:05:50]} O-O {[%emt 0:02:58]} 13. c3 {[%emt 0:03:26]} Ndc6 {[%emt 0:00:11]} 14. d4 {[%emt 0:05:04]} cxd4 {[%emt 0:00:43]} 15. cxd4 {[%emt 0:00:03]} b4 {[%emt 0:04:01]} 16. axb4 {[%emt 0:03:04]} Rxb4 {[%emt 0:08:26]} 17. Nc3 {[%emt 0:05:09]} Nxd4 {[%emt 0:05:29]} 18. Ra3 {[%emt 0:06:14]} Nec6 {[%emt 0:02:50]} 19. Rd1 {[%emt 0:03:04]} Ba6 {[%emt 0:04:45]} 20. b3 {[%emt 0:07:14]} Qb8 {[%emt 0:04:27]} 21. N3a2 {[%emt 0:04:36]} Nxb3 {[%emt 0:14:25]} 22. Qxd6 {[%emt 0:01:16]} Nxc1 {[%emt 0:09:12]} 23. Qxc6 {[%emt 0:01:46]} Nxa2 {[%emt 0:04:55]} 24. Qxa6 {[%emt 0:01:15]} Nc3 {[%emt 0:00:45]} 25. Rf1 {[%emt 0:02:43]} a4 {[%emt 0:11:10]} 26. Bc5 {[%emt 0:01:03]} Rd8 {[%emt 0:00:51]} 27. Bxb4 {[%emt 0:01:18]} Qxb4 {[%emt 0:00:05]} 28. Raa1 {[%emt 0:00:16]} Bd4 {[%emt 0:01:52]} 29. h4 {[%emt 0:01:43]} h5 {[%emt 0:01:52]} 30. Kh2 {[%emt 0:00:09]} e5 {[%emt 0:00:40]} 31. f4 {[%emt 0:00:46]} exf4 {[%emt 0:00:57]} 32. gxf4 {[%emt 0:00:35]} Qe7 {[%emt 0:00:47]} 33. Kh3 {[%emt 0:00:31]} Rb8 {[%emt 0:01:17]} 34. Qc4 {[%emt 0:00:44]} Rb4 {[%emt 0:01:43]} 35. Qc8+ {[%emt 0:00:22]} Kg7 {[%emt 0:00:02]} 36. f5 {[%emt 0:00:31]} Nxe4 {[%emt 0:00:34]} 37. fxg6 {[%emt 0:00:43]} Nf2+ {[%emt 0:00:44]} 38. Rxf2 {[%emt 0:00:07]} Bxf2 {[%emt 0:00:31]} 39. Qc3+ {[%emt 0:00:52]} Rd4 {[%emt 0:00:11]} 40. Bf3 {[%emt 0:00:16]} Qxh4+ {[%emt 0:00:53]} 41. Kg2 {[%emt 0:02:22]} Qg3+ {[%emt 0:09:55]} 42. Kf1 {[%emt 0:00:05]} fxg6 {[%emt 0:02:11]} 43. Ra2 {[%emt 0:06:43]} Qg1+ {[%emt 0:05:32]} 44. Ke2 {[%emt 0:00:11]} Bg3 {[%emt 0:01:25]} 0-1

[Event "Danish Skakligaen 2024-25"]
[Site "Denmark"]
[Date "2024.11.03"]
[Round "2.7"]
[White "Madsen, Michael B."]
[Black "Kakulidis, Ellen"]
[Result "1/2-1/2"]
[ECO "D02"]
[WhiteElo "2061"]
[BlackElo "2031"]
[Annotator "RC"]
[PlyCount "39"]
[EventDate "2024.11.02"]
[EventType "team-tourn"]
[EventCountry "DEN"]
[SourceTitle "playchess.com"]
[Source "ChessBase"]
[SourceQuality "1"]
[TimeControl "40/5400+30:1800+30"]

1. Nf3 {[%emt 0:00:04]} d5 {[%emt 0:00:28]} 2. d4 {[%emt 0:00:10]} Nf6 {[%emt 0:00:10]} 3. g3 {[%emt 0:00:10]} c6 {[%emt 0:00:08]} 4. Bg2 {[%emt 0:00:08]} Bf5 {[%emt 0:00:38]} 5. O-O {[%emt 0:00:54]} h6 {[%emt 0:00:08]} 6. c4 {[%emt 0:08:43]} e6 {[%emt 0:00:49]} 7. b3 {[%emt 0:38:05]} Be7 {[%emt 0:05:28]} 8. Bb2 {[%emt 0:00:59]} Nbd7 {[%emt 0:00:50]} 9. Nbd2 {[%emt 0:02:53]} Ne4 {[%emt 0:04:09]} 10. Nxe4 {[%emt 0:02:31]} Bxe4 {[%emt 0:00:06]} 11. Nd2 {[%emt 0:00:47]} Bxg2 {[%emt 0:00:17]} 12. Kxg2 {[%emt 0:00:07]} Nf6 {[%emt 0:04:24]} 13. f3 {[%emt 0:04:55]} c5 {[%emt 0:16:18]} 14. e4 {[%emt 0:05:29]} dxe4 {[%emt 0:04:16]} 15. fxe4 {[%emt 0:00:24]} cxd4 16. e5 {[%emt 0:00:33]} Nd7 {[%emt 0:07:51]} 17. Bxd4 {[%emt 0:01:11]} Qc7 {[%emt 0:03:33]} 18. Qg4 {[%emt 0:05:58]} O-O {[%emt 0:07:09]} 19. Nf3 {[%emt 0:06:10]} Rad8 {[%emt 0:05:31]} 20. Rae1 {[%emt 0:07:23]} 1/2-1/2

[Event "Danish Skakligaen 2024-25"]
[Site "Denmark"]
[Date "2024.11.03"]
[Round "2.7"]
[White "Holm, Filip"]
[Black "Nielsen, Lars Aaes"]
[Result "0-1"]
[ECO "C02"]
[WhiteElo "1993"]
[BlackElo "2208"]
[Annotator "RC"]
[PlyCount "42"]
[EventDate "2024.11.02"]
[EventType "team-tourn"]
[EventCountry "DEN"]
[SourceTitle "playchess.com"]
[Source "ChessBase"]
[SourceQuality "1"]
[TimeControl "40/5400+30:1800+30"]

1. e4 {[%emt 0:00:04]} e6 {[%emt 0:00:01]} 2. d4 {[%emt 0:00:08]} d5 {[%emt 0:00:03]} 3. e5 {[%emt 0:00:09]} c5 {[%emt 0:00:05]} 4. Nf3 {[%emt 0:00:26]} Nc6 {[%emt 0:00:24]} 5. c3 {[%emt 0:00:42]} Qb6 {[%emt 0:00:07]} 6. Be2 {[%emt 0:00:27]} cxd4 {[%emt 0:00:15]} 7. cxd4 {[%emt 0:00:15]} Nh6 {[%emt 0:00:36]} 8. Nc3 {[%emt 0:03:25]} Nf5 {[%emt 0:00:30]} 9. Bb5 {[%emt 0:01:51]} Bb4 {[%emt 0:03:25]} 10. Qd3 {[%emt 0:04:03]} O-O {[%emt 0:01:02]} 11. a3 {[%emt 0:01:18]} Be7 {[%emt 0:00:44]} 12. Na4 {[%emt 0:03:15]} Qc7 {[%emt 0:02:07]} 13. g4 {[%emt 0:11:53]} Nh4 {[%emt 0:23:58]} 14. Ng5 {[%emt 0:00:08]} Ng6 {[%emt 0:04:33]} 15. h4 {[%emt 0:01:51]} Ncxe5 {[%emt 0:07:15]} 16. dxe5 {[%emt 0:02:05]} a6 {[%emt 0:02:30]} 17. f4 {[%emt 0:27:37]} axb5 {[%emt 0:05:39]} 18. h5 {[%emt 0:15:47]} Bxg5 {[%emt 0:02:07]} 19. hxg6 {[%emt 0:00:44]} Rxa4 {[%emt 0:07:25]} 20. b4 {[%emt 0:11:22]} fxg6 {[%emt 0:01:40]} 21. Qh3 {[%emt 0:00:48]} h6 {[%emt 0:00:16]} 0-1

[Event "Danish Skakligaen 2024-25"]
[Site "Denmark"]
[Date "2024.11.03"]
[Round "2.8"]
[White "Ostergaard, Jens"]
[Black "Henriksen, Kasper"]
[Result "1-0"]
[ECO "E97"]
[WhiteElo "2268"]
[BlackElo "2102"]
[Annotator "RC"]
[PlyCount "59"]
[EventDate "2024.11.02"]
[EventType "team-tourn"]
[EventCountry "DEN"]
[SourceTitle "playchess.com"]
[Source "ChessBase"]
[SourceQuality "1"]
[TimeControl "40/5400+30:1800+30"]

1. d4 {[%emt 0:00:04]} Nf6 {[%emt 0:00:10]} 2. Nf3 {[%emt 0:00:22]} g6 {[%emt 0:00:46]} 3. c4 {[%emt 0:00:24]} Bg7 {[%emt 0:00:05]} 4. Nc3 {[%emt 0:00:16]} O-O {[%emt 0:00:07]} 5. e4 {[%emt 0:00:20]} d6 {[%emt 0:00:13]} 6. Be2 {[%emt 0:00:23]} e5 {[%emt 0:00:23]} 7. O-O {[%emt 0:00:30]} Nc6 {[%emt 0:00:26]} 8. Be3 {[%emt 0:01:36]} Ng4 {[%emt 0:00:17]} 9. Bg5 {[%emt 0:00:18]} f6 {[%emt 0:00:09]} 10. Bc1 {[%emt 0:02:16]} Nh6 {[%emt 0:04:33]} 11. d5 {[%emt 0:02:30]} Ne7 {[%emt 0:00:04]} 12. Nd2 {[%emt 0:02:35]} f5 {[%emt 0:01:28]} 13. f3 {[%emt 0:01:20]} f4 {[%emt 0:01:17]} 14. b4 {[%emt 0:01:03]} a5 {[%emt 0:01:15]} 15. bxa5 {[%emt 0:01:24]} Rxa5 {[%emt 0:07:55]} 16. a4 {[%emt 0:02:35]} g5 {[%emt 0:02:14]} 17. Ba3 {[%emt 0:01:58]} Rf6 {[%emt 0:02:33]} 18. c5 {[%emt 0:17:02]} Rg6 {[%emt 0:09:28]} 19. h3 {[%emt 0:09:32]} Nf7 {[%emt 0:01:42]} 20. Nc4 {[%emt 0:04:11]} Ra6 {[%emt 0:02:45]} 21. Nb5 {[%emt 0:06:59]} h5 {[%emt 0:02:25]} 22. Rc1 {[%emt 0:07:18]} Kh7 {[%emt 0:02:13]} 23. Nxc7 {[%emt 0:08:15]} dxc5 {[%emt 0:08:19]} 24. Nxa6 {[%emt 0:02:08]} bxa6 {[%emt 0:00:01]} 25. Bxc5 {[%emt 0:02:15]} Nh6 {[%emt 0:00:24]} 26. Kf2 {[%emt 0:10:22]} g4 {[%emt 0:01:52]} 27. hxg4 {[%emt 0:00:39]} Nxd5 {[%emt 0:06:14]} 28. Rh1 {[%emt 0:03:59]} Qc7 {[%emt 0:00:20]} 29. Qxd5 {[%emt 0:01:32]} Bb7 {[%emt 0:00:02]} 30. Bd6 {[%emt 0:00:47]} 1-0

[Event "Danish Skakligaen 2024-25"]
[Site "Denmark"]
[Date "2024.11.03"]
[Round "2.8"]
[White "Berg, Klaus"]
[Black "Holmsgaard, Henrik"]
[Result "1/2-1/2"]
[ECO "A13"]
[WhiteElo "2265"]
[BlackElo "2147"]
[Annotator "RC"]
[PlyCount "37"]
[EventDate "2024.11.02"]
[EventType "team-tourn"]
[EventCountry "DEN"]
[SourceTitle "playchess.com"]
[Source "ChessBase"]
[SourceQuality "1"]
[TimeControl "40/5400+30:1800+30"]

1. c4 {[%emt 0:01:04]} e6 {[%emt 0:00:52]} 2. Nf3 {[%emt 0:01:36]} d5 {[%emt 0:00:12]} 3. d4 {[%emt 0:00:57]} c5 {[%emt 0:00:47]} 4. cxd5 {[%emt 0:00:49]} exd5 {[%emt 0:00:07]} 5. e3 {[%emt 0:00:46]} Nc6 {[%emt 0:00:37]} 6. Be2 {[%emt 0:03:39]} Nf6 {[%emt 0:00:45]} 7. O-O {[%emt 0:00:05]} cxd4 {[%emt 0:01:20]} 8. Nxd4 {[%emt 0:00:16]} Bd6 {[%emt 0:00:12]} 9. Nc3 {[%emt 0:06:51]} O-O {[%emt 0:01:43]} 10. Bf3 {[%emt 0:03:50]} Be5 {[%emt 0:02:16]} 11. Nce2 {[%emt 0:00:26]} Bg4 {[%emt 0:17:37]} 12. h3 {[%emt 0:12:24]} Bd7 {[%emt 0:08:46]} 13. b3 {[%emt 0:01:18]} Ne4 {[%emt 0:01:40]} 14. Ba3 {[%emt 0:16:51]} Re8 {[%emt 0:05:36]} 15. Nxc6 {[%emt 0:17:51]} Bxc6 {[%emt 0:01:56]} 16. Nd4 {[%emt 0:02:54]} Qf6 {[%emt 0:06:26]} 17. Bb2 {[%emt 0:05:40]} Bd7 {[%emt 0:10:52]} 18. Bg4 {[%emt 0:01:18]} Bxg4 {[%emt 0:20:28]} 19. Qxg4 {[%emt 0:00:36]} 1/2-1/2